bitfinex/quotes_BTCUSD_20240602
["timestamp","ask_amount","ask_price","bid_price","bid_amount"]
[1717368639889,0.6676407,67912.0,67911.0,0.000946]
[1717368640090,0.85591861,67912.0,67911.0,0.000946]
[1717368640301,1.11491661,67912.0,67911.0,0.003946]
[1717368640477,1.22823551,67912.0,67911.0,0.003946]
[1717368640672,1.162056,67912.0,67911.0,0.003946]
[1717368640864,1.18568686,67912.0,67911.0,0.003946]
[1717368641072,1.22818686,67912.0,67911.0,0.003946]
[1717368641274,1.162056,67912.0,67911.0,0.003946]
[1717368641751,1.25029535,67912.0,67911.0,0.003946]
[1717368641905,1.26029535,67912.0,67911.0,0.004946]
[1717368642472,1.172056,67912.0,67911.0,0.004946]
[1717368643136,1.129556,67912.0,67911.0,0.004946]
[1717368643333,1.26029535,67912.0,67911.0,0.004946]
[1717368645339,1.272056,67912.0,67911.0,0.004946]
[1717368645761,1.65629948,67912.0,67911.0,0.003946]
[1717368646184,1.55929948,67912.0,67911.0,0.003946]
[1717368646398,1.82760706,67912.0,67911.0,0.003946]
[1717368646589,1.73760706,67912.0,67911.0,0.006946]
[1717368646926,1.83760706,67912.0,67911.0,0.006946]
[1717368647304,1.77959866,67912.0,67911.0,0.006946]
[1717368648398,1.66929948,67912.0,67911.0,0.006946]
[1717368648799,1.56929948,67912.0,67911.0,0.006946]
[1717368649384,1.67956453,67912.0,67911.0,0.006946]
[1717368649661,1.57624548,67912.0,67911.0,0.006946]
[1717368651803,1.67624548,67912.0,67911.0,0.006946]
[1717368653987,1.73387059,67912.0,67911.0,0.006946]
[1717368654550,1.69105212,67912.0,67911.0,0.006946]
[1717368654862,1.7613974,67912.0,67911.0,0.006946]
[1717368655071,2.1967744,67912.0,67911.0,0.006946]
[1717368655230,1.9261924,67912.0,67911.0,0.006946]
[1717368656614,1.8836924,67912.0,67911.0,0.006946]
[1717368656815,1.9261924,67912.0,67911.0,0.006946]
[1717368662704,2.2206904,67912.0,67911.0,0.006946]
[1717368662938,2.46293276,67912.0,67911.0,0.006946]
[1717368663650,2.42043276,67912.0,67911.0,0.006946]
[1717368663909,2.29813776,67912.0,67911.0,0.006946]
[1717368664176,3.93746276,67912.0,67911.0,0.006946]
[1717368664420,3.90148176,67912.0,67911.0,0.006946]
[1717368664674,3.16070676,67912.0,67911.0,0.006946]
[1717368664900,2.87549063,67912.0,67911.0,0.006946]
[1717368665824,2.80261663,67912.0,67911.0,0.006946]
[1717368666032,2.76832663,67912.0,67911.0,0.006946]
[1717368666226,2.70542763,67912.0,67911.0,0.006946]
[1717368666772,2.66292763,67912.0,67911.0,0.006946]
[1717368667018,2.4360254,67912.0,67911.0,0.006946]
[1717368667277,2.71410017,67912.0,67911.0,0.006946]
[1717368667504,2.56829463,67912.0,67911.0,0.006946]
[1717368668169,2.48193815,67912.0,67911.0,0.006946]
[1717368668390,2.56771342,67912.0,67911.0,0.006946]
[1717368669579,2.56749588,67912.0,67911.0,0.006946]
[1717368670444,2.6517885,67912.0,67911.0,0.006946]
[1717368670905,2.79759404,67912.0,67911.0,0.006946]
[1717368671135,2.6517885,67912.0,67911.0,0.006946]
[1717368671828,2.65145437,67912.0,67911.0,0.006946]
[1717368672281,2.64090919,67912.0,67911.0,0.003946]
[1717368672503,2.67690919,67912.0,67911.0,0.006946]
[1717368673445,2.67690919,67912.0,67885.0,0.2384]
[1717368673446,0.44054548,67904.0,67885.0,0.2384]
[1717368673715,0.58782048,67900.0,67885.0,0.2384]
[1717368673958,1.73164265,67900.0,67885.0,0.2384]
[1717368674179,3.33797027,67900.0,67885.0,0.2384]
[1717368674427,3.2624789,67900.0,67885.0,0.0761]
[1717368675094,3.2984789,67900.0,67899.0,0.010427]
[1717368675614,3.16627608,67900.0,67899.0,0.010427]
[1717368676300,3.13067008,67900.0,67899.0,0.010427]
[1717368676735,3.16667008,67900.0,67899.0,0.010427]
[1717368681408,3.18632572,67900.0,67899.0,0.010427]
[1717368681625,3.16667008,67900.0,67899.0,0.010427]
[1717368685859,3.18454017,67900.0,67899.0,0.010427]
[1717368686498,3.08400017,67900.0,67899.0,0.010427]
[1717368686801,3.12650017,67900.0,67899.0,0.010427]
[1717368689624,2.14278717,67900.0,67899.0,0.010427]
[1717368690298,2.04278717,67900.0,67899.0,0.010427]
[1717368690513,2.00028717,67900.0,67899.0,0.010427]
[1717368690743,2.20399917,67900.0,67899.0,0.010427]
[1717368691653,2.19340817,67900.0,67899.0,0.010427]
[1717368692113,1.99366269,67900.0,67899.0,0.010427]
[1717368692360,1.99366269,67900.0,67899.0,0.249827]
[1717368692361,1.28503169,67900.0,67899.0,0.249827]
[1717368692588,1.3673418,67900.0,67899.0,0.249827]
[1717368692812,1.25718641,67900.0,67899.0,0.249827]
[1717368693461,1.3673418,67900.0,67899.0,0.249827]
[1717368694145,1.39518864,67900.0,67899.0,0.249827]
[1717368694362,1.28503325,67900.0,67899.0,0.249827]
[1717368694614,1.24253325,67900.0,67899.0,0.249827]
[1717368694859,1.28503325,67900.0,67899.0,0.249827]
[1717368695323,1.28503325,67900.0,67899.0,0.087627]
[1717368695546,1.49738873,67900.0,67899.0,0.010427]
[1717368696641,1.49459363,67900.0,67899.0,0.010427]
[1717368696901,1.59459363,67900.0,67899.0,0.010427]
[1717368697388,1.49459363,67900.0,67899.0,0.010427]
[1717368697611,1.59459363,67900.0,67899.0,0.010427]
[1717368697852,1.35234815,67900.0,67899.0,0.010427]
[1717368698082,1.23973815,67900.0,67899.0,0.088727]
[1717368698301,1.28223815,67900.0,67899.0,0.088727]
[1717368699656,1.23973815,67900.0,67899.0,0.088727]
[1717368699887,1.28223815,67900.0,67899.0,0.252727]
[1717368700801,1.23973815,67900.0,67899.0,0.252727]
[1717368701136,1.36463516,67900.0,67899.0,0.252727]
[1717368701390,1.28224144,67900.0,67899.0,0.252727]
[1717368701645,1.36464199,67900.0,67899.0,0.252727]
[1717368702437,1.28224163,67900.0,67899.0,0.252727]
[1717368704616,0.81420297,67900.0,67899.0,0.252727]
[1717368704834,0.81420297,67900.0,67899.0,0.25987839]
[1717368704835,0.84500068,67900.0,67899.0,0.25987839]
[1717368707009,0.75678329,67900.0,67899.0,0.25987839]
[1717368708305,0.71155817,67900.0,67899.0,0.25987839]
[1717368712014,0.71154489,67900.0,67899.0,0.25987839]
[1717368712468,0.66904489,67900.0,67899.0,0.25987839]
[1717368713093,0.66907788,67900.0,67899.0,0.25987839]
[1717368713296,0.79982762,67900.0,67899.0,0.25987839]
[1717368714318,0.75732762,67900.0,67899.0,0.25987839]
[1717368714541,0.73945753,67900.0,67899.0,0.25987839]
[1717368714748,0.78195753,67900.0,67899.0,0.25987839]
[1717368715172,0.78195753,67900.0,67899.0,0.252727]
[1717368715604,0.73945753,67900.0,67899.0,0.25987655]
[1717368716028,0.78195753,67900.0,67899.0,0.25987655]
[1717368717088,0.73945753,67900.0,67899.0,0.25987655]
[1717368717331,0.78195753,67900.0,67899.0,0.25987655]
[1717368717553,0.73945753,67900.0,67899.0,0.25987655]
[1717368717761,0.78195753,67900.0,67899.0,0.25987655]
[1717368718606,0.79157445,67900.0,67899.0,0.25987655]
[1717368718818,0.78195753,67900.0,67899.0,0.25987655]
[1717368719267,0.83518828,67900.0,67899.0,0.25987655]
[1717368720806,0.74693854,67900.0,67899.0,0.25987655]
[1717368721018,0.75989165,67900.0,67899.0,0.25987655]
[1717368721230,0.69370779,67900.0,67899.0,0.25987655]
[1717368721441,0.75989165,67900.0,67899.0,0.25987655]
[1717368721798,0.46534165,67900.0,67899.0,0.25987655]
[1717368722839,0.39915779,67900.0,67899.0,0.25987655]
[1717368723039,0.46533709,67900.0,67899.0,0.25987655]
[1717368724235,0.39915779,67900.0,67899.0,0.25987655]
[1717368724682,0.46533709,67900.0,67899.0,0.25987655]
[1717368726368,0.39915779,67900.0,67899.0,0.25987655]
[1717368726611,0.46533709,67900.0,67899.0,0.25987655]
[1717368727041,0.4519024,67900.0,67899.0,0.25987655]
[1717368727703,0.54014762,67900.0,67899.0,0.25987655]
[1717368727912,0.4519024,67900.0,67899.0,0.25987655]
[1717368728118,0.54014673,67900.0,67899.0,0.25987655]
[1717368728956,0.4519024,67900.0,67899.0,0.25987655]
[1717368729613,0.54014673,67900.0,67899.0,0.25987655]
[1717368730638,0.54022324,67900.0,67899.0,0.25987655]
[1717368731062,0.3992343,67900.0,67899.0,0.25987655]
[1717368731451,0.53421491,67900.0,67899.0,0.25987655]
[1717368731857,0.44597058,67900.0,67899.0,0.25987655]
[1717368732031,0.53421491,67900.0,67899.0,0.25987655]
[1717368735469,0.44597058,67900.0,67899.0,0.25987655]
[1717368736029,0.44597058,67900.0,67899.0,0.252727]
[1717368736246,0.44597058,67900.0,67899.0,0.25987702]
[1717368737545,0.44548911,67900.0,67899.0,0.25987702]
[1717368738414,0.55587837,67900.0,67899.0,0.25987702]
[1717368739018,0.44548911,67900.0,67899.0,0.25987702]
[1717368739865,0.40298911,67900.0,67899.0,0.25987702]
[1717368740072,0.48746674,67900.0,67899.0,0.25987702]
[1717368740242,0.45009548,67900.0,67899.0,0.25987702]
[1717368740444,0.5560372,67900.0,67899.0,0.25987702]
[1717368743043,0.5560372,67900.0,67899.0,0.252727]
[1717368743466,0.5560372,67900.0,67899.0,0.25987974]
[1717368743637,0.5560372,67900.0,67899.0,0.26005681]
[1717368744420,0.5560372,67900.0,67899.0,0.01775681]
[1717368744421,0.51360136,67900.0,67899.0,0.01775681]
[1717368744629,0.51360136,67900.0,67899.0,0.25255681]
[1717368744842,0.51360136,67900.0,67899.0,0.24540407]
[1717368745017,0.51360136,67900.0,67899.0,0.25255681]
[1717368745423,0.47760136,67900.0,67899.0,0.25255681]
[1717368745896,0.51360136,67900.0,67899.0,0.25255681]
[1717368746496,0.35668393,67900.0,67899.0,0.25255681]
[1717368746702,0.32068393,67900.0,67899.0,0.25155681]
[1717368746908,0.3829233,67900.0,67899.0,0.25155681]
[1717368747329,0.38292329,67900.0,67899.0,0.25137974]
[1717368747747,0.33468393,67900.0,67899.0,0.25137974]
[1717368749457,0.33468393,67900.0,67899.0,0.26145681]
[1717368749880,0.44517391,67900.0,67899.0,0.26145681]
[1717368750096,0.33468393,67900.0,67899.0,0.26145681]
[1717368750339,0.33468393,67900.0,67899.0,0.26171133]
[1717368750563,0.42307551,67900.0,67899.0,0.26171133]
[1717368750793,0.33468393,67900.0,67899.0,0.26171133]
[1717368751874,0.33468393,67900.0,67899.0,0.26153426]
[1717368752522,0.33468393,67900.0,67899.0,0.26171133]
[1717368753027,0.33468393,67900.0,67899.0,0.26153426]
[1717368753873,0.33468393,67900.0,67899.0,0.26171133]
[1717368754096,0.33468393,67900.0,67899.0,0.26153426]
[1717368754313,0.33468393,67900.0,67899.0,0.26171133]
[1717368754936,0.33468393,67900.0,67899.0,0.26153426]
[1717368755115,0.33468393,67900.0,67899.0,0.26171133]
[1717368758816,0.33475917,67900.0,67899.0,0.26171133]
[1717368758997,0.33475917,67900.0,67899.0,0.26153426]
[1717368760866,0.33475917,67900.0,67899.0,0.26171133]
[1717368761067,0.33475917,67900.0,67899.0,0.26153426]
[1717368762146,0.40103127,67900.0,67899.0,0.26153426]
[1717368762351,0.33475917,67900.0,67899.0,0.26153426]
[1717368762550,0.33475917,67900.0,67899.0,0.26171133]
[1717368763210,0.40103034,67900.0,67899.0,0.26171133]
[1717368769146,0.40103034,67900.0,67899.0,0.26153426]
[1717368769353,0.40103034,67900.0,67899.0,0.26171133]
[1717368770542,0.40103034,67900.0,67899.0,0.26153426]
[1717368771030,0.42312513,67900.0,67899.0,0.26153426]
[1717368772086,0.33475917,67900.0,67899.0,0.26153426]
[1717368772294,0.42311552,67900.0,67899.0,0.26153426]
[1717368772917,0.33475917,67900.0,67899.0,0.26153426]
[1717368773961,0.42311971,67900.0,67899.0,0.25438152]
[1717368774195,0.42311971,67900.0,67899.0,0.25455859]
[1717368774409,0.42311971,67900.0,67899.0,0.26142391]
[1717368774410,0.33475917,67900.0,67899.0,0.26142391]
[1717368774621,0.23475917,67900.0,67899.0,0.26142391]
[1717368774827,0.23475917,67900.0,67899.0,0.41424204]
[1717368775043,0.08748417,67900.0,67899.0,0.41424204]
[1717368775260,0.08748417,67900.0,67899.0,0.26142391]
[1717368775261,0.07348417,67900.0,67899.0,0.26142391]
[1717368775477,0.07348417,67900.0,67899.0,0.41424138]
[1717368775695,0.04148417,67900.0,67899.0,0.41424138]
[1717368775911,0.04548417,67900.0,67899.0,0.41424138]
[1717368776121,0.04148417,67900.0,67899.0,0.41424138]
[1717368776530,0.04548417,67900.0,67899.0,0.41424138]
[1717368777255,0.008,67900.0,67899.0,0.41424138]
[1717368780765,0.008,67900.0,67899.0,0.41406431]
[1717368780979,0.008,67900.0,67899.0,0.01672391]
[1717368781187,0.04583431,67900.0,67899.0,0.01672391]
[1717368786285,0.19310931,67900.0,67899.0,0.01654684]
[1717368786513,0.19310931,67900.0,67899.0,0.01672391]
[1717368786730,0.23726359,67900.0,67899.0,0.01672391]
[1717368787151,0.23720214,67900.0,67899.0,0.01672391]
[1717368787620,0.19304591,67900.0,67899.0,0.01672391]
[1717368794343,0.26534591,67900.0,67899.0,0.01672391]
[1717368794554,0.26934591,67900.0,67899.0,0.01672391]
[1717368795095,0.26534591,67900.0,67899.0,0.01672391]
[1717368795498,0.18904591,67900.0,67899.0,0.01672391]
[1717368795695,0.19304591,67900.0,67899.0,0.01672391]
[1717368795896,0.18904591,67900.0,67899.0,0.01672391]
[1717368796374,0.19304591,67900.0,67899.0,0.01672391]
[1717368797558,0.19304591,67900.0,67899.0,0.01646939]
[1717368797771,0.26994591,67900.0,67899.0,0.01629232]
[1717368797975,0.46551251,67900.0,67899.0,0.01646939]
[1717368798136,0.46551691,67900.0,67899.0,0.01646939]
[1717368798328,0.46551691,67900.0,67899.0,0.00960407]
[1717368798690,0.42134591,67900.0,67899.0,0.00960407]
[1717368798895,0.46551755,67900.0,67899.0,0.00960407]
[1717368800574,0.19304591,67900.0,67899.0,0.00960407]
[1717368800790,0.19304591,67900.0,67899.0,0.00985859]
[1717368800991,0.19304591,67900.0,67899.0,0.25335859]
[1717368801458,0.19304591,67900.0,67899.0,0.26022013]
[1717368803199,0.18877755,67900.0,67899.0,0.26022013]
[1717368805183,0.04577091,67900.0,67899.0,0.26022013]
[1717368805379,0.04577091,67900.0,67899.0,0.41303564]
[1717368805588,0.008,67900.0,67899.0,0.45553564]
[1717368805995,0.008,67900.0,67899.0,0.30272013]
[1717368806226,0.008,67900.0,67899.0,0.45553478]
[1717368807192,0.008,67900.0,67899.0,0.45552866]
[1717368809391,0.008,67900.0,67899.0,0.74858077]
[1717368810561,0.004,67900.0,67899.0,0.74858077]
[1717368810802,0.00086,67902.0,67901.0,0.23503159]
[1717368811014,0.00086,67902.0,67901.0,0.53361523]
[1717368811456,0.00086,67902.0,67901.0,0.54034723]
[1717368812316,0.00386,67902.0,67901.0,0.57334723]
[1717368813136,0.00386,67902.0,67901.0,0.72062023]
[1717368813759,0.00486,67902.0,67901.0,0.75762023]
[1717368815985,0.00486,67902.0,67901.0,0.80012023]
[1717368820217,0.00486,67902.0,67901.0,0.80010702]
[1717368821545,0.00486,67902.0,67901.0,0.80010687]
[1717368821730,0.0044998,67902.0,67901.0,0.80010687]
[1717368827886,0.0044998,67902.0,67901.0,0.75760687]
[1717368828097,0.0044998,67902.0,67901.0,0.80010687]
[1717368828946,0.00336802,67902.0,67901.0,0.80010687]
[1717368829391,0.00336802,67902.0,67901.0,0.82310687]
[1717368832860,0.00336802,67902.0,67901.0,0.78060687]
[1717368833104,0.00336802,67902.0,67901.0,0.82310687]
[1717368834193,0.00336802,67902.0,67901.0,0.79820687]
[1717368835351,0.00336802,67902.0,67901.0,0.6454145]
[1717368835572,0.00336802,67902.0,67901.0,0.79821092]
[1717368835990,0.00336802,67902.0,67901.0,0.56550997]
[1717368836201,0.00336802,67902.0,67901.0,0.52300997]
[1717368836417,0.08286802,67902.0,67901.0,0.37723206]
[1717368836621,0.24516802,67902.0,67901.0,0.22995906]
[1717368839505,0.08286802,67902.0,67901.0,0.22995906]
[1717368844669,0.08286802,67902.0,67901.0,0.22996443]
[1717368847529,0.08262664,67902.0,67901.0,0.22996443]
[1717368847711,0.08262664,67902.0,67901.0,0.37723743]
[1717368851758,0.00312664,67902.0,67901.0,0.37723743]
[1717368852405,0.00312664,67902.0,67901.0,0.37818343]
[1717368852838,0.00398664,67902.0,67901.0,0.37818343]
[1717368856259,0.00398664,67902.0,67901.0,0.37818224]
[1717368859196,0.00398664,67902.0,67901.0,0.79856015]
[1717368859405,0.00398664,67902.0,67901.0,0.75606015]
[1717368859840,0.00398664,67902.0,67901.0,0.79856015]
[1717368863223,0.00398664,67902.0,67901.0,0.6457605]
[1717368863431,0.00398664,67902.0,67901.0,0.79854718]
[1717368869349,0.00398664,67902.0,67901.0,0.56644718]
[1717368869750,0.00398664,67902.0,67901.0,0.92924718]
[1717368869979,0.00398664,67902.0,67901.0,0.87337882]
[1717368870622,0.00398664,67902.0,67901.0,1.16792482]
[1717368870823,0.00398664,67902.0,67901.0,0.87337882]
[1717368873304,0.00398664,67902.0,67901.0,0.82924718]
[1717368873963,0.00398664,67902.0,67901.0,0.78674718]
[1717368874179,0.00398664,67902.0,67901.0,0.82924718]
[1717368874818,0.00398664,67902.0,67901.0,1.17924718]
[1717368876170,0.00398664,67902.0,67901.0,0.52394718]
[1717368876406,0.24598664,67902.0,67901.0,0.52394718]
[1717368881736,0.24598664,67902.0,67901.0,0.52395857]
[1717368886827,0.08538664,67902.0,67901.0,0.52395857]
[1717368887473,0.00398664,67902.0,67901.0,0.3711605]
[1717368887701,0.00398664,67902.0,67901.0,0.52395857]
[1717368894405,0.00398664,67902.0,67901.0,0.52395097]
[1717368895046,0.00398664,67902.0,67901.0,0.52395138]
[1717368897009,0.00398664,67902.0,67901.0,0.56645138]
[1717368901120,0.00398664,67902.0,67901.0,0.79735138]
[1717368901575,0.00398664,67902.0,67901.0,0.84148767]
[1717368902885,0.00398664,67902.0,67901.0,0.79897829]
[1717368903097,0.00398664,67902.0,67901.0,0.79734311]
[1717368903748,0.00398664,67902.0,67901.0,0.6445605]
[1717368903958,0.00398664,67902.0,67901.0,0.79734723]
[1717368906581,0.00398664,67902.0,67901.0,0.56644723]
[1717368906799,0.00398664,67902.0,67901.0,0.52394723]
[1717368912747,0.00398664,67902.0,67901.0,0.56644723]
[1717368913346,0.00398664,67902.0,67901.0,0.52394723]
[1717368913772,0.00398664,67902.0,67901.0,0.56644723]
[1717368914508,0.00398664,67902.0,67901.0,0.37667423]
[1717368914656,0.08708664,67902.0,67901.0,0.37667423]
[1717368914855,0.25018664,67902.0,67901.0,0.37667423]
[1717368916269,0.25018664,67902.0,67901.0,0.23071925]
[1717368916475,0.25018664,67902.0,67901.0,0.23089632]
[1717368919231,0.25018664,67902.0,67901.0,0.07810959]
[1717368919637,0.25018664,67902.0,67901.0,0.23092093]
[1717368919838,0.25018664,67902.0,67901.0,0.07810959]
[1717368923948,0.25018664,67902.0,67901.0,0.23092001]
[1717368924511,0.25018664,67902.0,67901.0,0.07810959]
[1717368926025,0.25018664,67902.0,67901.0,0.07793252]
[1717368926236,0.25018664,67902.0,67901.0,0.07810959]
[1717368926848,0.08708664,67902.0,67901.0,0.07810959]
[1717368927052,0.08708664,67902.0,67901.0,0.2309138]
[1717368929568,0.00398664,67902.0,67901.0,0.64529171]
[1717368930014,0.00398664,67902.0,67901.0,0.60279171]
[1717368930214,0.00398664,67902.0,67901.0,0.64529171]
[1717368934117,0.00398664,67902.0,67901.0,0.60279171]
[1717368934369,0.00398664,67902.0,67901.0,0.64529171]
[1717368937625,0.00398664,67902.0,67901.0,0.64528273]
[1717368938509,0.00398664,67902.0,67901.0,0.4924875]
[1717368938766,0.00398664,67902.0,67901.0,0.6452817]
[1717368939213,0.00398664,67902.0,67901.0,0.7925547]
[1717368941510,0.00398664,67902.0,67901.0,0.5664547]
[1717368941736,0.00398664,67902.0,67901.0,0.6479547]
[1717368942882,0.00398664,67902.0,67901.0,0.6054547]
[1717368943092,0.00398664,67902.0,67901.0,0.6479547]
[1717368943521,0.00398664,67902.0,67901.0,0.6054547]
[1717368943737,0.00398664,67902.0,67901.0,0.6479547]
[1717368951222,0.00398664,67902.0,67901.0,0.4951605]
[1717368951439,0.00398664,67902.0,67901.0,0.64794922]
[1717368952513,0.00398664,67902.0,67901.0,0.64795015]
[1717368955072,0.00398664,67902.0,67901.0,0.64761154]
[1717368959637,0.00398664,67902.0,67901.0,0.64761187]
[1717368960495,0.00398664,67902.0,67901.0,0.64761137]
[1717368965113,0.00398664,67902.0,67901.0,0.60511137]
[1717368965325,0.00398664,67902.0,67901.0,0.64761137]
[1717368969195,0.00398664,67902.0,67901.0,0.67061137]
[1717368969419,0.00398664,67902.0,67901.0,1.04235892]
[1717368969977,0.00398664,67902.0,67901.0,1.0423688]
[1717368971116,0.00398664,67902.0,67901.0,1.2323688]
[1717368971338,0.00398664,67902.0,67901.0,1.3429604]
[1717368971538,0.00398664,67902.0,67901.0,1.4429604]
[1717368971757,0.00398664,67902.0,67901.0,1.50909729]
[1717368972161,0.00398664,67902.0,67901.0,1.40909729]
[1717368973008,0.00398664,67902.0,67901.0,1.32088049]
[1717368973850,0.00398664,67902.0,67901.0,1.42088049]
[1717368974419,0.00298664,67902.0,67901.0,1.38388049]
[1717368974626,0.00386,67902.0,67901.0,1.37788049]
[1717368975018,0.00386,67902.0,67901.0,1.41188049]
[1717368975019,0.00686,67902.0,67901.0,1.41188049]
[1717368975440,0.00686,67902.0,67901.0,1.50009729]
[1717368976257,0.00686,67902.0,67901.0,1.41188049]
[1717368976690,0.00686,67902.0,67901.0,1.31188049]
[1717368978347,0.00686,67902.0,67901.0,1.41188049]
[1717368980004,0.00686,67902.0,67901.0,1.31188049]
[1717368983197,0.00686,67902.0,67901.0,1.37802045]
[1717368983859,0.00686,67902.0,67901.0,1.40009664]
[1717368983995,0.00686,67902.0,67901.0,1.37802045]
[1717368984616,0.00686,67902.0,67901.0,1.40009658]
[1717368985492,0.00686,67902.0,67901.0,1.37802045]
[1717368985984,0.00686,67902.0,67901.0,1.40009614]
[1717368986408,0.00686,67902.0,67901.0,1.40009362]
[1717368987334,0.00686,67902.0,67901.0,1.37801793]
[1717368989601,0.00686,67902.0,67901.0,1.96912649]
[1717368990277,0.00686,67902.0,67901.0,2.0793218]
[1717368990483,0.00386,67902.0,67901.0,2.0523218]
[1717368990710,0.00086,67902.0,67901.0,2.0183218]
[1717368990960,0.00386,67902.0,67901.0,2.0923218]
[1717368991213,0.00386,67902.0,67901.0,1.78675268]
[1717368991430,0.00386,67902.0,67901.0,2.05528345]
[1717368991649,0.00386,67902.0,67901.0,2.09228345]
[1717368992068,0.00086,67902.0,67901.0,2.05528345]
[1717368992524,0.00086,67902.0,67901.0,2.09228345]
[1717368992748,0.00086,67902.0,67901.0,2.09225691]
[1717368995084,0.00086,67902.0,67901.0,2.38680291]
[1717368995289,0.00086,67902.0,67901.0,2.59609137]
[1717368995495,0.00086,67902.0,67901.0,2.48589606]
[1717368996342,0.00086,67902.0,67901.0,2.59604769]
[1717368996521,0.00086,67902.0,67901.0,2.59648926]
[1717368997188,0.00086,67902.0,67901.0,2.48633763]
[1717369002939,0.00086,67902.0,67901.0,2.4855009]
[1717369005860,0.00086,67902.0,67901.0,2.5855009]
[1717369013192,0.00086,67902.0,67901.0,2.37659259]
[1717369013409,0.00086,67902.0,67901.0,2.58606869]
[1717369020684,0.00086,67902.0,67901.0,2.66230374]
[1717369024062,0.00086,67902.0,67901.0,2.35677297]
[1717369024279,0.00086,67902.0,67901.0,2.42092753]
[1717369024480,0.00086,67902.0,67901.0,2.7264343]
[1717369026828,0.00086,67902.0,67901.0,2.726374]
[1717369028775,0.00086,67902.0,67901.0,2.72639834]
[1717369030444,0.00086,67902.0,67901.0,2.8586226]
[1717369031312,0.00086,67902.0,67901.0,2.85852311]
[1717369032463,0.00086,67902.0,67901.0,2.72629885]
[1717369034638,0.1549,67910.0,67909.0,1.08202052]
[1717369034845,0.1549,67910.0,67909.0,2.1473654]
[1717369035060,0.10463587,67912.0,67911.0,1.09178859]
[1717369035283,0.00086,67917.0,67916.0,1.33725259]
[1717369035506,0.00086,67917.0,67916.0,2.5213419]
[1717369035736,0.00086,67917.0,67916.0,2.55096387]
[1717369035954,0.00086,67917.0,67916.0,2.59346387]
[1717369037463,0.00086,67917.0,67916.0,2.38398777]
[1717369038189,0.00086,67917.0,67916.0,2.63046387]
[1717369038404,0.00086,67917.0,67916.0,2.42098777]
[1717369039019,0.00086,67917.0,67916.0,2.45798777]
[1717369039917,0.00086,67917.0,67916.0,2.38188817]
[1717369040136,0.00086,67917.0,67916.0,2.45804193]
[1717369040368,0.23376,67917.0,67916.0,1.87604372]
[1717369040598,0.23376,67917.0,67916.0,1.44847993]
[1717369040820,0.23376,67917.0,67916.0,1.27354732]
[1717369041068,0.23376,67917.0,67916.0,1.18547316]
[1717369041293,0.23376,67917.0,67916.0,1.27354732]
[1717369041507,0.23376,67917.0,67916.0,1.11147316]
[1717369041722,0.23376,67917.0,67916.0,1.20847316]
[1717369042374,0.23376,67917.0,67916.0,1.17147316]
[1717369042580,0.23376,67917.0,67916.0,1.20847316]
[1717369043478,0.23376,67917.0,67916.0,1.17147316]
[1717369044345,0.23376,67917.0,67916.0,1.20847316]
[1717369045270,0.23376,67917.0,67916.0,1.60203042]
[1717369045938,0.23376,67917.0,67916.0,1.56503042]
[1717369046349,0.23376,67917.0,67916.0,1.52803042]
[1717369046573,0.23376,67917.0,67916.0,1.52253042]
[1717369046834,0.23376,67917.0,67916.0,1.17147316]
[1717369047285,0.23376,67917.0,67916.0,1.20847316]
[1717369047487,0.23376,67917.0,67916.0,1.17147316]
[1717369047703,0.23376,67917.0,67916.0,1.27452484]
[1717369047910,0.23376,67917.0,67916.0,1.17147316]
[1717369049443,0.23376,67917.0,67916.0,1.20847316]
[1717369050298,0.23376,67917.0,67916.0,1.5139639]
[1717369050513,0.00086,67917.0,67916.0,1.5139639]
[1717369050763,0.00086,67917.0,67916.0,1.60203806]
[1717369052301,0.00086,67917.0,67916.0,1.70203806]
[1717369054831,0.00086,67917.0,67916.0,1.99651906]
[1717369056692,0.00086,67917.0,67916.0,2.25161906]
[1717369056910,0.00086,67917.0,67916.0,2.48731906]
[1717369058628,0.00086,67917.0,67916.0,2.48743662]
[1717369058843,0.00086,67917.0,67916.0,2.3569142]
[1717369059050,0.00086,67917.0,67916.0,2.3994142]
[1717369060230,0.00086,67917.0,67916.0,2.417313]
[1717369063287,0.00086,67917.0,67916.0,2.52734103]
[1717369063707,0.00086,67917.0,67916.0,2.417313]
[1717369064738,0.00086,67917.0,67916.0,2.52734103]
[1717369065162,0.00086,67917.0,67916.0,2.417313]
[1717369065570,0.00086,67917.0,67916.0,2.52734103]
[1717369066683,0.00086,67917.0,67916.0,2.417313]
[1717369066894,0.00086,67917.0,67916.0,2.52734103]
[1717369067543,0.00086,67917.0,67916.0,2.417313]
[1717369067752,0.00086,67917.0,67916.0,2.711794]
[1717369067955,0.00086,67917.0,67916.0,2.811794]
[1717369069322,0.00086,67917.0,67916.0,2.774794]
[1717369069530,0.00086,67917.0,67916.0,2.811794]
[1717369069925,0.00086,67917.0,67916.0,2.73750248]
[1717369070166,0.00086,67917.0,67916.0,2.81150248]
[1717369072689,0.00086,67917.0,67916.0,2.65878054]
[1717369072871,0.00086,67917.0,67916.0,2.81151014]
[1717369084371,0.00086,67917.0,67916.0,2.81148886]
[1717369085695,0.00086,67917.0,67916.0,2.65876705]
[1717369085904,0.00086,67917.0,67916.0,2.81148849]
[1717369087795,0.00086,67917.0,67916.0,3.10597114]
[1717369088027,0.00086,67917.0,67916.0,3.30216731]
[1717369088231,0.2356,67928.0,67927.0,0.98208059]
[1717369088445,0.2356,67928.0,67927.0,1.74095372]
[1717369088724,0.2356,67928.0,67927.0,1.90024971]
[1717369089357,0.2356,67928.0,67927.0,1.93724971]
[1717369089783,0.2406,67928.0,67927.0,2.07424971]
[1717369089982,0.0755,67928.0,67927.0,2.07424971]
[1717369091733,0.0755,67928.0,67927.0,1.89820567]
[1717369091951,0.1651,67930.0,67929.0,0.44206859]
[1717369092163,0.0754,67934.0,67933.0,0.14738007]
[1717369092413,0.0754,67934.0,67933.0,0.51794031]
[1717369092673,0.2333,67934.0,67933.0,0.51794031]
[1717369093171,0.2333,67934.0,67933.0,0.51819483]
[1717369093403,0.2333,67934.0,67933.0,0.55519483]
[1717369093660,0.2333,67934.0,67933.0,0.86060919]
[1717369094270,0.2333,67934.0,67933.0,0.55519483]
[1717369094490,0.2333,67934.0,67933.0,0.59219483]
[1717369095204,0.2333,67934.0,67933.0,0.94163411]
[1717369095861,0.2333,67934.0,67933.0,0.63621945]
[1717369096194,0.2333,67934.0,67933.0,0.94163358]
[1717369097772,0.2333,67934.0,67933.0,1.23604058]
[1717369097961,0.2333,67934.0,67933.0,1.25805289]
[1717369098871,0.2333,67934.0,67933.0,1.22105289]
[1717369099080,0.2333,67934.0,67933.0,1.25805289]
[1717369099488,0.2333,67934.0,67933.0,1.18405289]
[1717369099698,0.2333,67934.0,67933.0,1.22105289]